fUST/lending_fUST_20260527
["ID","MTS","AMOUNT","RATE_DAILY","PERIOD"]
[423113612,1779859841000,-406.07176355,8.493e-05,2]
[423113617,1779859841000,-500.0,8.493e-05,2]
[423113619,1779859841000,-500.0,8.493e-05,2]
[423113615,1779859841000,-500.0,8.493e-05,2]
[423113626,1779859841000,-500.0,8.493e-05,2]
[423113628,1779859841000,-500.0,8.493e-05,2]
[423113630,1779859841000,-500.0,8.493e-05,2]
[423113638,1779859841000,-500.0,8.493e-05,2]
[423113635,1779859841000,-500.0,8.493e-05,2]
[423113643,1779859841000,-500.0,8.493e-05,2]
[423113610,1779859841000,-500.0,8.493e-05,2]
[423113708,1779859841000,-151.0,8.493e-05,2]
[423113667,1779859841000,-500.0,8.493e-05,2]
[423113710,1779859841000,-503.94,8.493e-05,2]
[423113770,1779859841000,-500.0,8.493e-05,2]
[423113772,1779859841000,-529.71758377,8.493e-05,2]
[423113775,1779859841000,-501.24525287,8.493e-05,2]
[423113777,1779859841000,-500.0,8.493e-05,2]
[423113779,1779859841000,-500.0,8.493e-05,2]
[423113789,1779859841000,-500.0,8.493e-05,2]
[423113781,1779859841000,-500.0,8.493e-05,2]
[423113787,1779859841000,-500.0,8.493e-05,2]
[423113791,1779859841000,-501.19838045,8.493e-05,2]
[423113785,1779859841000,-500.0,8.493e-05,2]
[423113783,1779859841000,-500.0,8.493e-05,2]
[423113768,1779859841000,-500.0,8.493e-05,2]
[423113793,1779859841000,-500.0,8.493e-05,2]
[423113795,1779859841000,-500.0,8.493e-05,2]
[423113801,1779859841000,-500.0,8.493e-05,2]
[423113820,1779859841000,-500.0,8.493e-05,2]
[423113816,1779859841000,-500.0,8.493e-05,2]
[423113803,1779859841000,-501.38992625,8.493e-05,2]
[423113818,1779859841000,-500.0,8.493e-05,2]
[423113809,1779859841000,-500.0,8.493e-05,2]
[423113807,1779859841000,-500.0,8.493e-05,2]
[423113805,1779859841000,-500.0,8.493e-05,2]
[423113813,1779859841000,-500.50418337,8.493e-05,2]
[423113714,1779859841000,-584.93589618,8.493e-05,2]
[423113799,1779859841000,-530.19868505,8.493e-05,2]
[423113759,1779859841000,-500.0,8.493e-05,2]
[423113797,1779859841000,-574.44,8.493e-05,2]
[423113761,1779859841000,-500.0,8.493e-05,2]
[423113703,1779859841000,-500.0,8.493e-05,2]
[423113755,1779859841000,-500.0,8.493e-05,2]
[423113706,1779859841000,-500.0,8.493e-05,2]
[423113716,1779859841000,-557.96,8.493e-05,2]
[423113718,1779859841000,-518.25125204,8.493e-05,2]
[423113720,1779859841000,-500.0,8.493e-05,2]
[423113722,1779859841000,-500.0,8.493e-05,2]
[423113737,1779859841000,-183.64648123,8.493e-05,2]
[423113739,1779859841000,-500.0,8.493e-05,2]
[423113731,1779859841000,-500.0,8.493e-05,2]
[423113726,1779859841000,-500.0,8.493e-05,2]
[423113728,1779859841000,-500.0,8.493e-05,2]
[423113724,1779859841000,-500.0,8.493e-05,2]
[423113749,1779859841000,-500.0,8.493e-05,2]
[423113735,1779859841000,-500.0,8.493e-05,2]
[423113733,1779859841000,-500.0,8.493e-05,2]
[423113811,1779859841000,-500.0,8.493e-05,2]
[423113743,1779859841000,-500.0,8.493e-05,2]
[423113745,1779859841000,-500.0,8.493e-05,2]
[423113747,1779859841000,-500.0,8.493e-05,2]
[423113751,1779859841000,-500.0,8.493e-05,2]
[423113763,1779859841000,-500.0,8.493e-05,2]
[423113753,1779859841000,-500.93733916,8.493e-05,2]
[423113765,1779859841000,-500.0,8.493e-05,2]
[423113757,1779859841000,-500.0,8.493e-05,2]
[423113740,1779859841000,-500.0,8.493e-05,2]
[423113906,1779859842000,-558.12,8.493e-05,2]
[423113887,1779859842000,-501.26230142,8.493e-05,2]
[423113904,1779859842000,-500.0,8.493e-05,2]
[423113919,1779859842000,-163.89191,8.498e-05,2]
[423113908,1779859842000,-300.3027018,8.493e-05,2]
[423113902,1779859842000,-500.0,8.493e-05,2]
[423113890,1779859842000,-500.0,8.493e-05,2]
[423113898,1779859842000,-500.0,8.493e-05,2]
[423113896,1779859842000,-515.8220987,8.493e-05,2]
[423113894,1779859842000,-500.0,8.493e-05,2]
[423113892,1779859842000,-500.0,8.493e-05,2]
[423113912,1779859842000,-500.0,8.493e-05,2]
[423113900,1779859842000,-535.52,8.493e-05,2]
[423113923,1779859842000,-152.8610718,8.549e-05,2]
[423113938,1779859842000,-500.0,8.767e-05,2]
[423113909,1779859842000,-500.0,8.493e-05,2]
[423113914,1779859842000,-500.0,8.493e-05,2]
[423113915,1779859842000,-640.86,8.493e-05,2]
[423113918,1779859842000,-163.89191,8.498e-05,2]
[423113925,1779859842000,-420.0,8.658e-05,2]
[423113927,1779859842000,-253.0,8.658e-05,2]
[423113929,1779859842000,-720.0,8.659e-05,2]
[423113933,1779859842000,-412.18,8.767e-05,2]
[423113932,1779859842000,-500.0,8.767e-05,2]
[423113947,1779859842000,-500.0,8.767e-05,2]
[423113949,1779859842000,-543.62,8.767e-05,2]
[423113941,1779859842000,-500.0,8.767e-05,2]
[423113945,1779859842000,-500.0,8.767e-05,2]
[423113889,1779859842000,-500.0,8.493e-05,2]
[423113921,1779859842000,-152.0,8.507e-05,7]
[423113886,1779859842000,-3032.96,8.493e-05,2]
[423113834,1779859842000,-500.0,8.493e-05,2]
[423113884,1779859842000,-500.0,8.493e-05,2]
[423113822,1779859842000,-500.0,8.493e-05,2]
[423113824,1779859842000,-500.52160596,8.493e-05,2]
[423113826,1779859842000,-500.0,8.493e-05,2]
[423113828,1779859842000,-500.0,8.493e-05,2]
[423113830,1779859842000,-312.81253414,8.493e-05,2]
[423113943,1779859842000,-500.0,8.767e-05,2]
[423113836,1779859842000,-500.0,8.493e-05,2]
[423113832,1779859842000,-500.0,8.493e-05,2]
[423113838,1779859842000,-444.08001728,8.493e-05,2]
[423113840,1779859842000,-500.0,8.493e-05,2]
[423113842,1779859842000,-565.88,8.493e-05,2]
[423113846,1779859842000,-500.0,8.493e-05,2]
[423113844,1779859842000,-500.0,8.493e-05,2]
[423113848,1779859842000,-500.0,8.493e-05,2]
[423113888,1779859842000,-500.0,8.493e-05,2]
[423113850,1779859842000,-500.0,8.493e-05,2]
[423113855,1779859842000,-611.94,8.493e-05,2]
[423113857,1779859842000,-500.0,8.493e-05,2]
[423113859,1779859842000,-500.0,8.493e-05,2]
[423113869,1779859842000,-500.0,8.493e-05,2]
[423113871,1779859842000,-500.0,8.493e-05,2]
[423113874,1779859842000,-500.0,8.493e-05,2]
[423113861,1779859842000,-500.0,8.493e-05,2]
[423113865,1779859842000,-500.0,8.493e-05,2]
[423113863,1779859842000,-500.74213552,8.493e-05,2]
[423113867,1779859842000,-500.0,8.493e-05,2]
[423113878,1779859842000,-500.0,8.493e-05,2]
[423113876,1779859842000,-501.09023241,8.493e-05,2]
[423113880,1779859842000,-500.0,8.493e-05,2]
[423113882,1779859842000,-500.0,8.493e-05,2]
[423113853,1779859842000,-500.0,8.493e-05,2]
[423113939,1779859842000,-500.0,8.767e-05,2]
[423113935,1779859842000,-209.84,8.767e-05,2]
[423113955,1779859842000,-500.0,8.767e-05,2]
[423114017,1779859842000,-264.54,8.767e-05,2]
[423114021,1779859842000,-429.22,8.767e-05,2]
[423114023,1779859842000,-500.0,8.767e-05,2]
[423114029,1779859842000,-500.0,8.767e-05,2]
[423114019,1779859842000,-500.0,8.767e-05,2]
[423114033,1779859842000,-501.53396121,8.767e-05,2]
[423114035,1779859842000,-604.98,8.767e-05,2]
[423114039,1779859842000,-500.0,8.767e-05,2]
[423114037,1779859842000,-500.0,8.767e-05,2]
[423114041,1779859842000,-500.0,8.767e-05,2]
[423114043,1779859842000,-161.94,8.767e-05,2]
[423114055,1779859842000,-500.0,8.767e-05,2]
[423114057,1779859842000,-500.0,8.767e-05,2]
[423114051,1779859842000,-500.0,8.767e-05,2]
[423114031,1779859842000,-500.0,8.767e-05,2]
[423114045,1779859842000,-500.0,8.767e-05,2]
[423114049,1779859842000,-574.44,8.767e-05,2]
[423114059,1779859842000,-500.0,8.767e-05,2]
[423114064,1779859842000,-393.05315696,8.767e-05,2]
[423114062,1779859842000,-500.0,8.767e-05,2]
[423114066,1779859842000,-500.0,8.767e-05,2]
[423114070,1779859842000,-500.0,8.767e-05,2]
[423114068,1779859842000,-313.94,8.767e-05,2]
[423114081,1779859842000,-500.0,8.767e-05,2]
[423114074,1779859842000,-500.0,8.767e-05,2]
[423114072,1779859842000,-461.2,8.767e-05,2]
[423114080,1779859842000,-500.0,8.767e-05,2]
[423114078,1779859842000,-500.0,8.767e-05,2]
[423114076,1779859842000,-500.0,8.767e-05,2]
[423113951,1779859842000,-304.98,8.767e-05,2]
[423114047,1779859842000,-500.0,8.767e-05,2]
[423114015,1779859842000,-500.0,8.767e-05,2]
[423114053,1779859842000,-542.18219644,8.767e-05,2]
[423114027,1779859842000,-602.79054326,8.767e-05,2]
[423114025,1779859842000,-500.0,8.767e-05,2]
[423113957,1779859842000,-626.18,8.767e-05,2]
[423113953,1779859842000,-298.68,8.767e-05,2]
[423113962,1779859842000,-500.0,8.767e-05,2]
[423113976,1779859842000,-500.0,8.767e-05,2]
[423113972,1779859842000,-500.0,8.767e-05,2]
[423113974,1779859842000,-500.0,8.767e-05,2]
[423113964,1779859842000,-500.0,8.767e-05,2]
[423113966,1779859842000,-238.06,8.767e-05,2]
[423113970,1779859842000,-240.06,8.767e-05,2]
[423113968,1779859842000,-500.0,8.767e-05,2]
[423113978,1779859842000,-500.0,8.767e-05,2]
[423113980,1779859842000,-307.8,8.767e-05,2]
[423113982,1779859842000,-156.64,8.767e-05,2]
[423113986,1779859842000,-386.24,8.767e-05,2]
[423113960,1779859842000,-500.0,8.767e-05,2]
[423113990,1779859842000,-500.0,8.767e-05,2]
[423113984,1779859842000,-181.92,8.767e-05,2]
[423114005,1779859842000,-306.6,8.767e-05,2]
[423114013,1779859842000,-500.0,8.767e-05,2]
[423114011,1779859842000,-433.64,8.767e-05,2]
[423114007,1779859842000,-500.0,8.767e-05,2]
[423113998,1779859842000,-500.0,8.767e-05,2]
[423114003,1779859842000,-500.0,8.767e-05,2]
[423114009,1779859842000,-309.38,8.767e-05,2]
[423113999,1779859842000,-263.68,8.767e-05,2]
[423113993,1779859842000,-500.0,8.767e-05,2]
[423113995,1779859842000,-500.0,8.767e-05,2]
[423113992,1779859842000,-500.0,8.767e-05,2]
[423113988,1779859842000,-500.0,8.767e-05,2]
[423114001,1779859842000,-500.0,8.767e-05,2]
[423114166,1779859843000,-500.0,9.041e-05,2]
[423114164,1779859843000,-500.0,9.041e-05,2]
[423114161,1779859843000,-500.0,9.041e-05,2]
[423114163,1779859843000,-500.0,9.041e-05,2]
[423114151,1779859843000,-500.0,9.041e-05,2]
[423114159,1779859843000,-455.58,9.041e-05,2]
[423114153,1779859843000,-151.0,9.041e-05,2]
[423114154,1779859843000,-645.78,9.041e-05,2]
[423114152,1779859843000,-151.0,9.041e-05,2]
[423114149,1779859843000,-500.0,9.041e-05,2]
[423114150,1779859843000,-500.0,9.041e-05,2]
[423114168,1779859843000,-516.34,9.041e-05,2]
[423114156,1779859843000,-500.0,9.041e-05,2]
[423114174,1779859843000,-500.0,9.041e-05,2]
[423114175,1779859843000,-500.0,9.041e-05,2]
[423114085,1779859843000,-500.0,8.767e-05,2]
[423114169,1779859843000,-500.0,9.041e-05,2]
[423114173,1779859843000,-500.0,9.041e-05,2]
[423114170,1779859843000,-500.0,9.041e-05,2]
[423114178,1779859843000,-500.0,9.041e-05,2]
[423114176,1779859843000,-500.0,9.041e-05,2]
[423114177,1779859843000,-500.0,9.041e-05,2]
[423114179,1779859843000,-500.0,9.041e-05,2]
[423114180,1779859843000,-489.33814691,9.041e-05,2]
[423114181,1779859843000,-625.32,9.041e-05,2]
[423114186,1779859843000,-500.0,9.041e-05,2]
[423114182,1779859843000,-500.0,9.041e-05,2]
[423114184,1779859843000,-224.28,9.041e-05,2]
[423114148,1779859843000,-500.0,9.041e-05,2]
[423114172,1779859843000,-574.44,9.041e-05,2]
[423114146,1779859843000,-500.0,9.041e-05,2]
[423114083,1779859843000,-500.0,8.767e-05,2]
[423114183,1779859843000,-500.0,9.041e-05,2]
[423114087,1779859843000,-500.0,8.767e-05,2]
[423114089,1779859843000,-3032.96,8.767e-05,2]
[423114091,1779859843000,-156.24771623,8.767e-05,2]
[423114093,1779859843000,-500.0,8.767e-05,2]
[423114095,1779859843000,-500.0,8.767e-05,2]
[423114097,1779859843000,-500.0,8.767e-05,2]
[423114108,1779859843000,-500.0,9.041e-05,2]
[423114110,1779859843000,-500.0,9.041e-05,2]
[423114112,1779859843000,-302.16,9.041e-05,2]
[423114098,1779859843000,-500.0,8.767e-05,2]
[423114102,1779859843000,-500.0,8.767e-05,2]
[423114100,1779859843000,-500.0,8.767e-05,2]
[423114106,1779859843000,-500.0,9.041e-05,2]
[423114104,1779859843000,-191.55,8.945e-05,2]
[423114147,1779859843000,-500.0,9.041e-05,2]
[423114118,1779859843000,-500.0,9.041e-05,2]
[423114115,1779859843000,-239.82,9.041e-05,2]
[423114120,1779859843000,-500.0,9.041e-05,2]
[423114123,1779859843000,-337.2,9.041e-05,2]
[423114127,1779859843000,-500.0,9.041e-05,2]
[423114131,1779859843000,-500.0,9.041e-05,2]
[423114125,1779859843000,-500.0,9.041e-05,2]
[423114129,1779859843000,-500.0,9.041e-05,2]
[423114122,1779859843000,-500.0,9.041e-05,2]
[423114133,1779859843000,-500.0,9.041e-05,2]
[423114135,1779859843000,-500.0,9.041e-05,2]
[423114139,1779859843000,-500.0,9.041e-05,2]
[423114141,1779859843000,-500.0,9.041e-05,2]
[423114145,1779859843000,-163.7,9.041e-05,2]
[423114143,1779859843000,-576.48,9.041e-05,2]
[423114113,1779859843000,-500.0,9.041e-05,2]
[423114187,1779859843000,-500.0,9.041e-05,2]
[423114171,1779859843000,-500.0,9.041e-05,2]
[423114188,1779859843000,-3032.96,9.041e-05,2]
[423114223,1779859843000,-500.0,9.315e-05,2]
[423114224,1779859843000,-500.0,9.315e-05,2]
[423114227,1779859843000,-574.44,9.315e-05,2]
[423114229,1779859843000,-500.0,9.315e-05,2]
[423114228,1779859843000,-500.0,9.315e-05,2]
[423114232,1779859843000,-500.0,9.315e-05,2]
[423114230,1779859843000,-500.0,9.315e-05,2]
[423114231,1779859843000,-500.0,9.315e-05,2]
[423114234,1779859843000,-500.0,9.315e-05,2]
[423114233,1779859843000,-500.0,9.315e-05,2]
[423114235,1779859843000,-500.0,9.315e-05,2]
[423114238,1779859843000,-500.0,9.315e-05,2]
[423114241,1779859843000,-500.0,9.315e-05,2]
[423114239,1779859843000,-500.0,9.315e-05,2]
[423114222,1779859843000,-307.58,9.315e-05,2]
[423114236,1779859843000,-500.0,9.315e-05,2]
[423114237,1779859843000,-500.0,9.315e-05,2]
[423114240,1779859843000,-3032.96,9.315e-05,2]
[423114242,1779859843000,-500.0,9.315e-05,2]
[423114245,1779859843000,-500.0,9.315e-05,2]
[423114246,1779859843000,-373.46548636,9.315e-05,2]
[423114247,1779859843000,-587.0,9.524e-05,2]
[423114244,1779859843000,-500.0,9.315e-05,2]
[423114248,1779859843000,-864.0,9.525e-05,2]
[423114249,1779859843000,-328.07452327,9.527e-05,2]
[423114251,1779859843000,-234.5,9.589e-05,2]
[423114252,1779859843000,-500.0,9.589e-05,2]
[423114250,1779859843000,-443.29259973,9.546e-05,2]
[423114253,1779859843000,-500.0,9.589e-05,2]
[423114185,1779859843000,-500.0,9.041e-05,2]
[423114243,1779859843000,-500.0,9.315e-05,2]
[423114225,1779859843000,-500.0,9.315e-05,2]
[423114226,1779859843000,-500.0,9.315e-05,2]
[423114220,1779859843000,-500.0,9.315e-05,2]
[423114191,1779859843000,-500.0,9.041e-05,2]
[423114221,1779859843000,-500.0,9.315e-05,2]
[423114189,1779859843000,-500.0,9.041e-05,2]
[423114192,1779859843000,-500.0,9.041e-05,2]
[423114197,1779859843000,-1414.0,9.173e-05,2]
[423114193,1779859843000,-500.0,9.041e-05,2]
[423114196,1779859843000,-193.501,9.086e-05,2]
[423114195,1779859843000,-189.69522231,9.086e-05,2]
[423114194,1779859843000,-500.0,9.041e-05,2]
[423114199,1779859843000,-500.0,9.315e-05,2]
[423114198,1779859843000,-163.05,9.315e-05,2]
[423114200,1779859843000,-590.51,9.315e-05,2]
[423114201,1779859843000,-283.56,9.315e-05,2]
[423114205,1779859843000,-500.0,9.315e-05,2]
[423114202,1779859843000,-500.0,9.315e-05,2]
[423114190,1779859843000,-500.0,9.041e-05,2]
[423114203,1779859843000,-500.0,9.315e-05,2]
[423114204,1779859843000,-500.0,9.315e-05,2]
[423114219,1779859843000,-500.0,9.315e-05,2]
[423114218,1779859843000,-500.0,9.315e-05,2]
[423114216,1779859843000,-500.0,9.315e-05,2]
[423114215,1779859843000,-500.0,9.315e-05,2]
[423114214,1779859843000,-500.0,9.315e-05,2]
[423114213,1779859843000,-500.0,9.315e-05,2]
[423114217,1779859843000,-225.64,9.315e-05,2]
[423114207,1779859843000,-490.48,9.315e-05,2]
[423114209,1779859843000,-500.0,9.315e-05,2]
[423114212,1779859843000,-500.0,9.315e-05,2]
[423114210,1779859843000,-642.51,9.315e-05,2]
[423114208,1779859843000,-500.0,9.315e-05,2]
[423114211,1779859843000,-500.0,9.315e-05,2]
[423114206,1779859843000,-500.0,9.315e-05,2]
[423114294,1779859844000,-253.65,9.863e-05,2]
[423114295,1779859844000,-500.0,9.863e-05,2]
[423114293,1779859844000,-500.0,9.863e-05,2]
[423114292,1779859844000,-500.0,9.863e-05,2]
[423114291,1779859844000,-500.0,9.589e-05,2]
[423114287,1779859844000,-166.22,9.589e-05,2]
[423114289,1779859844000,-500.0,9.589e-05,2]
[423114285,1779859844000,-500.0,9.589e-05,2]
[423114288,1779859844000,-500.0,9.589e-05,2]
[423114301,1779859844000,-190.54,9.863e-05,2]
[423114286,1779859844000,-3032.96,9.589e-05,2]
[423114290,1779859844000,-500.0,9.589e-05,2]
[423114297,1779859844000,-500.0,9.863e-05,2]
[423114305,1779859844000,-500.0,9.863e-05,2]
[423114296,1779859844000,-500.0,9.863e-05,2]
[423114299,1779859844000,-480.20417016,9.863e-05,2]
[423114300,1779859844000,-187.99,9.863e-05,2]
[423114303,1779859844000,-500.0,9.863e-05,2]
[423114302,1779859844000,-500.0,9.863e-05,2]
[423114304,1779859844000,-151.0,9.863e-05,2]
[423114307,1779859844000,-500.0,9.863e-05,2]
[423114309,1779859844000,-500.0,9.863e-05,2]
[423114306,1779859844000,-490.4,9.863e-05,2]
[423114308,1779859844000,-500.0,9.863e-05,2]
[423114310,1779859844000,-500.0,9.863e-05,2]
[423114311,1779859844000,-500.0,9.863e-05,2]
[423114284,1779859844000,-500.0,9.589e-05,2]
[423114298,1779859844000,-500.0,9.863e-05,2]
[423114283,1779859844000,-500.0,9.589e-05,2]
[423114266,1779859844000,-500.0,9.589e-05,2]
[423114282,1779859844000,-500.0,9.589e-05,2]
[423114256,1779859844000,-500.0,9.589e-05,2]
[423114254,1779859844000,-500.0,9.589e-05,2]
[423114255,1779859844000,-500.0,9.589e-05,2]
[423114258,1779859844000,-500.0,9.589e-05,2]
[423114257,1779859844000,-500.0,9.589e-05,2]
[423114259,1779859844000,-297.12,9.589e-05,2]
[423114261,1779859844000,-500.0,9.589e-05,2]
[423114260,1779859844000,-500.0,9.589e-05,2]
[423114263,1779859844000,-233.88,9.589e-05,2]
[423114262,1779859844000,-500.0,9.589e-05,2]
[423114265,1779859844000,-500.0,9.589e-05,2]
[423114264,1779859844000,-500.0,9.589e-05,2]
[423114268,1779859844000,-500.0,9.589e-05,2]
[423114312,1779859844000,-574.44,9.863e-05,2]
[423114267,1779859844000,-500.0,9.589e-05,2]
[423114270,1779859844000,-500.0,9.589e-05,2]
[423114269,1779859844000,-500.0,9.589e-05,2]
[423114271,1779859844000,-500.0,9.589e-05,2]
[423114272,1779859844000,-500.0,9.589e-05,2]
[423114276,1779859844000,-500.0,9.589e-05,2]
[423114275,1779859844000,-500.0,9.589e-05,2]
[423114273,1779859844000,-574.44,9.589e-05,2]
[423114274,1779859844000,-491.04,9.589e-05,2]
[423114278,1779859844000,-500.0,9.589e-05,2]
[423114277,1779859844000,-500.0,9.589e-05,2]
[423114279,1779859844000,-500.0,9.589e-05,2]
[423114280,1779859844000,-500.0,9.589e-05,2]
[423114281,1779859844000,-500.0,9.589e-05,2]
[423114313,1779859844000,-500.0,9.863e-05,2]
[423114314,1779859844000,-500.0,9.863e-05,2]
[423114362,1779859844000,-500.0,0.0001041,2]
[423114348,1779859844000,-500.0,0.00010136,2]
[423114346,1779859844000,-500.0,0.00010136,2]
[423114354,1779859844000,-3032.96,0.00010136,2]
[423114353,1779859844000,-351.56,0.00010136,2]
[423114350,1779859844000,-500.0,0.00010136,2]
[423114351,1779859844000,-500.0,0.00010136,2]
[423114356,1779859844000,-500.0,0.00010136,2]
[423114357,1779859844000,-500.0,0.00010136,2]
[423114358,1779859844000,-500.0,0.00010136,2]
[423114355,1779859844000,-500.0,0.00010136,2]
[423114359,1779859844000,-500.0,0.0001041,2]
[423114361,1779859844000,-500.0,0.0001041,2]
[423114363,1779859844000,-500.0,0.0001041,2]
[423114349,1779859844000,-500.0,0.00010136,2]
[423114316,1779859844000,-593.54,9.863e-05,2]
[423114364,1779859844000,-500.0,0.0001041,2]
[423114367,1779859844000,-500.0,0.0001041,2]
[423114368,1779859844000,-500.0,0.0001041,2]
[423114365,1779859844000,-500.0,0.0001041,2]
[423114366,1779859844000,-500.0,0.0001041,2]
[423114370,1779859844000,-500.0,0.0001041,2]
[423114369,1779859844000,-500.0,0.0001041,2]
[423114371,1779859844000,-574.44,0.0001041,2]
[423114372,1779859844000,-500.0,0.0001041,2]
[423114374,1779859844000,-500.0,0.0001041,2]
[423114376,1779859844000,-500.0,0.0001041,2]
[423114373,1779859844000,-500.0,0.0001041,2]
[423114375,1779859844000,-500.0,0.0001041,2]
[423114360,1779859844000,-500.0,0.0001041,2]
[423114347,1779859844000,-500.0,0.00010136,2]
[423114352,1779859844000,-500.0,0.00010136,2]
[423114342,1779859844000,-500.0,0.00010136,2]
[423114315,1779859844000,-500.0,9.863e-05,2]
[423114318,1779859844000,-500.0,9.863e-05,2]
[423114317,1779859844000,-500.0,9.863e-05,2]
[423114320,1779859844000,-458.98,9.863e-05,2]
[423114319,1779859844000,-500.0,9.863e-05,2]
[423114324,1779859844000,-3032.96,9.863e-05,2]
[423114323,1779859844000,-500.0,9.863e-05,2]
[423114344,1779859844000,-574.44,0.00010136,2]
[423114322,1779859844000,-500.0,9.863e-05,2]
[423114326,1779859844000,-500.0,9.863e-05,2]
[423114321,1779859844000,-500.0,9.863e-05,2]
[423114327,1779859844000,-500.0,9.863e-05,2]
[423114329,1779859844000,-31658.69220778,9.889e-05,2]
[423114328,1779859844000,-500.0,9.863e-05,2]
[423114325,1779859844000,-500.0,9.863e-05,2]
[423114331,1779859844000,-500.0,0.00010136,2]
[423114332,1779859844000,-500.0,0.00010136,2]
[423114343,1779859844000,-500.0,0.00010136,2]
[423114340,1779859844000,-500.0,0.00010136,2]
[423114341,1779859844000,-500.0,0.00010136,2]
[423114338,1779859844000,-500.0,0.00010136,2]
[423114337,1779859844000,-413.54,0.00010136,2]
[423114335,1779859844000,-500.0,0.00010136,2]
[423114336,1779859844000,-500.0,0.00010136,2]
[423114333,1779859844000,-500.0,0.00010136,2]
[423114334,1779859844000,-500.0,0.00010136,2]
[423114330,1779859844000,-500.0,0.00010136,2]
[423114339,1779859844000,-280.14,0.00010136,2]
[423114345,1779859844000,-288.0351322,0.00010136,2]
[423114397,1779859845000,-500.0,0.00010684,2]
[423114401,1779859845000,-500.0,0.00010684,2]
[423114394,1779859845000,-500.0,0.00010684,2]
[423114399,1779859845000,-500.0,0.00010684,2]
[423114398,1779859845000,-500.0,0.00010684,2]
[423114400,1779859845000,-500.0,0.00010684,2]
[423114409,1779859845000,-500.0,0.00010684,2]
[423114406,1779859845000,-313.08,0.00010684,2]
[423114402,1779859845000,-500.0,0.00010684,2]
[423114403,1779859845000,-574.44,0.00010684,2]
[423114405,1779859845000,-500.0,0.00010684,2]
[423114408,1779859845000,-500.0,0.00010684,2]
[423114407,1779859845000,-500.0,0.00010684,2]
[423114396,1779859845000,-262.34,0.00010684,2]
[423114404,1779859845000,-500.0,0.00010684,2]
[423114395,1779859845000,-500.0,0.00010684,2]
[423114410,1779859845000,-3032.96,0.00010684,2]
[423114391,1779859845000,-388.93,0.00010684,2]
[423114377,1779859845000,-377.98,0.0001041,2]
[423114378,1779859845000,-500.0,0.0001041,2]
[423114380,1779859845000,-500.0,0.0001041,2]
[423114379,1779859845000,-3032.96,0.0001041,2]
[423114382,1779859845000,-500.0,0.0001041,2]
[423114384,1779859845000,-647.0,0.00010476,2]
[423114393,1779859845000,-500.0,0.00010684,2]
[423114381,1779859845000,-500.0,0.0001041,2]
[423114386,1779859845000,-8391.7562149,0.00010617,2]
[423114388,1779859845000,-12740.3181299,0.00010617,2]
[423114387,1779859845000,-2680.8792088,0.00010617,2]
[423114392,1779859845000,-500.0,0.00010684,2]
[423114389,1779859845000,-151.0,0.00010617,2]
[423114390,1779859845000,-4878.9695198,0.00010617,2]
[423114383,1779859845000,-500.0,0.0001041,2]
[423114412,1779859845000,-204.58,0.00010684,2]
[423114385,1779859845000,-1000.0,0.00010478,2]
[423114413,1779859845000,-234.5,0.00010684,2]
[423114433,1779859845000,-3032.96,0.00010958,2]
[423114434,1779859845000,-500.0,0.00010958,2]
[423114436,1779859845000,-15000.0,0.00010959,2]
[423114437,1779859845000,-203.548,0.00010959,2]
[423114438,1779859845000,-185.0600029,0.00011,2]
[423114440,1779859845000,-428.47,0.00011,2]
[423114431,1779859845000,-625.76,0.00010958,2]
[423114439,1779859845000,-3200.08480203,0.00011,2]